[Event "Titled Tuesday Blitz November 15 Early 2022"]
[White "Adithya A Chullikkad"]
[Black "Tarasova, Viktoriya"]
[WhiteFideId "45078734"]
[BlackFideId "4175840"]
[WhiteElo "2106"]
[BlackElo "2182"]
[Result "0-1"]
[Round "04"]
[TimeControl "180+1"]
[Date "2022.11.16"]
[WhiteClock "0:01:18"]
[BlackClock "0:00:09"]

1. d4 {[%clk 0:02:55]}  Nf6 {[%clk 0:02:49]} 2. Bf4 {[%clk 0:02:54]}  d5 {[%clk 0:02:47]} 3. e3 {[%clk 0:02:53]}  c5 {[%clk 0:02:46]} 4. h3 {[%clk 0:02:53]}  Nc6 {[%clk 0:02:45]} 5. c3 {[%clk 0:02:53]}  e6 {[%clk 0:02:27]} 6. Nd2 {[%clk 0:02:52]}  Bd6 {[%clk 0:02:21]} 7. Ne2 {[%clk 0:02:49]}  O-O {[%clk 0:02:21]} 8. Bxd6 {[%clk 0:02:46]}  Qxd6 {[%clk 0:02:20]} 9. Nc1 {[%clk 0:02:47]}  b6 {[%clk 0:02:19]} 10. Be2 {[%clk 0:02:45]}  e5 {[%clk 0:02:19]} 11. O-O {[%clk 0:02:45]}  exd4 {[%clk 0:02:19]} 12. cxd4 {[%clk 0:02:44]}  cxd4 {[%clk 0:02:18]} 13. exd4 {[%clk 0:02:37]}  Nxd4 {[%clk 0:02:18]} 14. Bd3 {[%clk 0:02:37]}  Nc6 {[%clk 0:02:15]} 15. Ncb3 {[%clk 0:02:34]}  Be6 {[%clk 0:02:15]} 16. Nc4 {[%clk 0:02:33]}  Qe7 {[%clk 0:02:12]} 17. Ne3 {[%clk 0:02:33]}  Qd7 {[%clk 0:02:08]} 18. Rc1 {[%clk 0:02:32]}  a6 {[%clk 0:02:02]} 19. Qe2 {[%clk 0:02:27]}  Qb7 {[%clk 0:01:53]} 20. Bxa6 {[%clk 0:02:24]}  Rxa6 {[%clk 0:01:51]} 21. Rxc6 {[%clk 0:02:24]}  Rxa2 {[%clk 0:01:43]} 22. Rfc1 {[%clk 0:02:23]}  Ne4 {[%clk 0:01:32]} 23. Nd4 {[%clk 0:02:11]}  Nc5 {[%clk 0:01:16]} 24. Rc2 {[%clk 0:01:53]}  Rfa8 {[%clk 0:01:05]} 25. b4 {[%clk 0:01:50]}  Ra1+ {[%clk 0:00:56]} 26. Kh2 {[%clk 0:01:48]}  Bd7 {[%clk 0:00:47]} 27. Rd6 {[%clk 0:01:41]}  Ne4 {[%clk 0:00:21]} 28. Rxd5 {[%clk 0:01:36]}  Qb8+ {[%clk 0:00:22]} 29. g3 {[%clk 0:01:32]}  Be8 {[%clk 0:00:17]} 30. Nef5 {[%clk 0:01:27]}  Nf6 {[%clk 0:00:14]} 31. Rc8 {[%clk 0:01:23]}  Qb7 {[%clk 0:00:10]} 32. Rxa8 {[%clk 0:01:20]}  Qxa8 {[%clk 0:00:10]} 33. Re5 {[%clk 0:01:18]}  Qh1# {[%clk 0:00:09]} 0-1


[Site "https://www.chess.com"]

[Event "Titled Tuesday Blitz November 15 Early 2022"]
[White "Aggelis, Nikolaos"]
[Black "Torres Dominguez, David"]
[WhiteFideId "4213220"]
[BlackFideId "2220857"]
[WhiteElo "2189"]
[BlackElo "2037"]
[Result "1-0"]
[Round "04"]
[TimeControl "180+1"]
[Date "2022.11.16"]
[WhiteClock "0:01:27"]
[BlackClock "0:00:58"]

1. Nf3 {[%clk 0:03:00]}  e6 {[%clk 0:02:48]} 2. d4 {[%clk 0:02:59]}  d5 {[%clk 0:02:48]} 3. g3 {[%clk 0:03:00]}  Nf6 {[%clk 0:02:48]} 4. Bg2 {[%clk 0:03:01]}  Be7 {[%clk 0:02:48]} 5. O-O {[%clk 0:03:02]}  O-O {[%clk 0:02:48]} 6. c4 {[%clk 0:03:02]}  c6 {[%clk 0:02:45]} 7. Nbd2 {[%clk 0:03:02]}  Nbd7 {[%clk 0:02:41]} 8. b3 {[%clk 0:03:02]}  b6 {[%clk 0:02:39]} 9. Bb2 {[%clk 0:03:03]}  Bb7 {[%clk 0:02:38]} 10. Ne5 {[%clk 0:03:04]}  Rc8 {[%clk 0:02:34]} 11. Rc1 {[%clk 0:03:04]}  Ba8 {[%clk 0:02:30]} 12. Re1 {[%clk 0:02:27]}  Re8 {[%clk 0:02:29]} 13. h4 {[%clk 0:02:25]}  Bf8 {[%clk 0:02:24]} 14. a3 {[%clk 0:02:19]}  c5 {[%clk 0:02:20]} 15. Nxd7 {[%clk 0:02:18]}  Nxd7 {[%clk 0:02:08]} 16. e4 {[%clk 0:02:15]}  dxe4 {[%clk 0:02:04]} 17. Nxe4 {[%clk 0:02:14]}  cxd4 {[%clk 0:02:00]} 18. Qxd4 {[%clk 0:02:14]}  Qe7 {[%clk 0:01:48]} 19. Rcd1 {[%clk 0:01:54]}  Red8 {[%clk 0:01:43]} 20. Nd6 {[%clk 0:01:46]}  Qxd6 {[%clk 0:01:39]} 21. Qxd6 {[%clk 0:01:46]}  Bxd6 {[%clk 0:01:36]} 22. Rxd6 {[%clk 0:01:47]}  Bxg2 {[%clk 0:01:35]} 23. Kxg2 {[%clk 0:01:48]}  Nc5 {[%clk 0:01:33]} 24. Rxd8+ {[%clk 0:01:42]}  Rxd8 {[%clk 0:01:31]} 25. b4 {[%clk 0:01:43]}  Nd3 {[%clk 0:01:29]} 26. Re2 {[%clk 0:01:43]}  f6 {[%clk 0:01:17]} 27. Bc3 {[%clk 0:01:41]}  Kf7 {[%clk 0:01:13]} 28. Rd2 {[%clk 0:01:41]}  Rd7 {[%clk 0:01:10]} 29. Kf1 {[%clk 0:01:36]}  Ke7 {[%clk 0:01:05]} 30. Ke2 {[%clk 0:01:31]}  Nc1+ {[%clk 0:01:03]} 31. Kd1 {[%clk 0:01:31]}  Rxd2+ {[%clk 0:01:00]} 32. Kxd2 {[%clk 0:01:29]}  Nb3+ {[%clk 0:00:59]} 33. Kc2 {[%clk 0:01:27]}  a5 {[%clk 0:00:58]} 34. Kxb3 {[%clk 0:01:27]}  Kd7 {[%clk 0:00:57]} 35. bxa5 {[%clk 0:01:26]}  bxa5 {[%clk 0:00:57]} 36. Bxa5 {[%clk 0:01:27]}  Kc6 {[%clk 0:00:58]} 37. Bb4 {[%clk 0:01:27]} 1-0


[Site "https://www.chess.com"]

[Event "Titled Tuesday Blitz November 15 Early 2022"]
[White "Al-Tarboush, Ward"]
[Black "Van Foreest, Machteld"]
[WhiteFideId "7601450"]
[BlackFideId "1051563"]
[WhiteElo "2273"]
[BlackElo "2018"]
[Result "0-1"]
[Round "04"]
[TimeControl "180+1"]
[Date "2022.11.16"]
[WhiteClock "0:00:44"]
[BlackClock "0:00:08"]

1. e4 {[%clk 0:03:00]}  c5 {[%clk 0:02:57]} 2. Nf3 {[%clk 0:03:01]}  e6 {[%clk 0:02:57]} 3. d4 {[%clk 0:03:01]}  cxd4 {[%clk 0:02:58]} 4. Nxd4 {[%clk 0:03:01]}  Nc6 {[%clk 0:02:58]} 5. Nc3 {[%clk 0:03:01]}  Nf6 {[%clk 0:02:59]} 6. Nxc6 {[%clk 0:03:01]}  bxc6 {[%clk 0:02:58]} 7. e5 {[%clk 0:03:02]}  Nd5 {[%clk 0:02:59]} 8. Ne4 {[%clk 0:03:02]}  Qc7 {[%clk 0:03:00]} 9. f4 {[%clk 0:03:01]}  Rb8 {[%clk 0:02:56]} 10. Bd3 {[%clk 0:02:52]}  Be7 {[%clk 0:02:32]} 11. O-O {[%clk 0:02:49]}  Qb6+ {[%clk 0:02:26]} 12. Kh1 {[%clk 0:02:49]}  Ne3 {[%clk 0:02:25]} 13. Bxe3 {[%clk 0:02:48]}  Qxe3 {[%clk 0:02:26]} 14. Qg4 {[%clk 0:02:46]}  g6 {[%clk 0:02:01]} 15. Rae1 {[%clk 0:02:45]}  h5 {[%clk 0:01:56]} 16. Qd1 {[%clk 0:02:41]}  Qb6 {[%clk 0:01:52]} 17. Nd6+ {[%clk 0:02:38]}  Bxd6 {[%clk 0:01:50]} 18. exd6 {[%clk 0:02:39]}  f5 {[%clk 0:01:32]} 19. Bc4 {[%clk 0:02:36]}  Ba6 {[%clk 0:01:30]} 20. Bxa6 {[%clk 0:02:35]}  Qxa6 {[%clk 0:01:31]} 21. Qd4 {[%clk 0:02:35]}  Kf7 {[%clk 0:01:29]} 22. Rf3 {[%clk 0:02:27]}  Qxa2 {[%clk 0:01:18]} 23. h3 {[%clk 0:02:19]}  Qxb2 {[%clk 0:01:09]} 24. Qxa7 {[%clk 0:02:18]}  Rb7 {[%clk 0:01:09]} 25. Qe3 {[%clk 0:02:16]}  Qxc2 {[%clk 0:01:06]} 26. Rg3 {[%clk 0:02:10]}  Rhb8 {[%clk 0:00:59]} 27. Kh2 {[%clk 0:01:52]}  Rb3 {[%clk 0:00:51]} 28. Qa7 {[%clk 0:01:48]}  R8b7 {[%clk 0:00:39]} 29. Qa8 {[%clk 0:01:44]}  Qf2 {[%clk 0:00:28]} 30. Rxb3 {[%clk 0:01:27]}  Rxb3 {[%clk 0:00:29]} 31. Rg1 {[%clk 0:01:09]}  Qxf4+ {[%clk 0:00:28]} 32. Kh1 {[%clk 0:01:09]}  Qh4 {[%clk 0:00:23]} 33. Kh2 {[%clk 0:01:05]}  Qf4+ {[%clk 0:00:16]} 34. Kh1 {[%clk 0:01:05]}  Qe4 {[%clk 0:00:16]} 35. Kh2 {[%clk 0:01:03]}  Qe5+ {[%clk 0:00:16]} 36. Kh1 {[%clk 0:01:01]}  Qd5 {[%clk 0:00:16]} 37. Kh2 {[%clk 0:00:59]}  Qxd6+ {[%clk 0:00:16]} 38. Kh1 {[%clk 0:00:59]}  Qd5 {[%clk 0:00:11]} 39. Kh2 {[%clk 0:01:00]}  Qe5+ {[%clk 0:00:10]} 40. Kh1 {[%clk 0:01:00]}  Qe4 {[%clk 0:00:09]} 41. Kh2 {[%clk 0:01:00]}  Qe5+ {[%clk 0:00:07]} 42. Kh1 {[%clk 0:01:00]}  f4 {[%clk 0:00:08]} 43. Qd8 {[%clk 0:00:59]}  Qd5 {[%clk 0:00:05]} 44. Qh4 {[%clk 0:00:57]}  f3 {[%clk 0:00:05]} 45. Qf4+ {[%clk 0:00:57]}  Kg7 {[%clk 0:00:04]} 46. Kh2 {[%clk 0:00:54]}  fxg2 {[%clk 0:00:04]} 47. Rxg2 {[%clk 0:00:51]}  Rd3 {[%clk 0:00:05]} 48. Rf2 {[%clk 0:00:49]}  Qd6 {[%clk 0:00:05]} 49. Qxd6 {[%clk 0:00:47]}  Rxd6 {[%clk 0:00:06]} 50. Kg3 {[%clk 0:00:48]}  Rd5 {[%clk 0:00:07]} 51. Rb2 {[%clk 0:00:47]}  c5 {[%clk 0:00:08]} 52. Rb7 {[%clk 0:00:47]}  Kf6 {[%clk 0:00:08]} 53. Rc7 {[%clk 0:00:47]}  Ke5 {[%clk 0:00:08]} 54. Kf3 {[%clk 0:00:48]}  Rd3+ {[%clk 0:00:09]} 55. Ke2 {[%clk 0:00:48]}  Rd5 {[%clk 0:00:09]} 56. Ke3 {[%clk 0:00:47]}  Kf5 {[%clk 0:00:10]} 57. Rc8 {[%clk 0:00:47]}  g5 {[%clk 0:00:11]} 58. Rf8+ {[%clk 0:00:47]}  Ke5 {[%clk 0:00:11]} 59. Rg8 {[%clk 0:00:47]}  Kd6 {[%clk 0:00:10]} 60. Rh8 {[%clk 0:00:47]}  g4 {[%clk 0:00:09]} 61. h4 {[%clk 0:00:48]}  c4 {[%clk 0:00:09]} 62. Rc8 {[%clk 0:00:48]}  Rc5 {[%clk 0:00:09]} 63. Ra8 {[%clk 0:00:48]}  c3 {[%clk 0:00:09]} 64. Ra6+ {[%clk 0:00:47]}  Rc6 {[%clk 0:00:08]} 65. Ra1 {[%clk 0:00:48]}  c2 {[%clk 0:00:09]} 66. Rc1 {[%clk 0:00:47]}  Ke5 {[%clk 0:00:09]} 67. Kd2 {[%clk 0:00:46]}  Kf4 {[%clk 0:00:09]} 68. Rf1+ {[%clk 0:00:46]}  Kg3 {[%clk 0:00:09]} 69. Kc1 {[%clk 0:00:47]}  Kxh4 {[%clk 0:00:09]} 70. Rh1+ {[%clk 0:00:47]}  Kg5 {[%clk 0:00:09]} 71. Re1 {[%clk 0:00:47]}  h4 {[%clk 0:00:10]} 72. Re5+ {[%clk 0:00:47]}  Kf4 {[%clk 0:00:11]} 73. Rh5 {[%clk 0:00:47]}  h3 {[%clk 0:00:10]} 74. Rh8 {[%clk 0:00:47]}  g3 {[%clk 0:00:10]} 75. Rf8+ {[%clk 0:00:47]}  Ke3 {[%clk 0:00:11]} 76. Rh8 {[%clk 0:00:47]}  g2 {[%clk 0:00:09]} 77. Rg8 {[%clk 0:00:47]}  h2 {[%clk 0:00:09]} 78. Rg3+ {[%clk 0:00:47]}  Kf2 {[%clk 0:00:09]} 79. Rf3+ {[%clk 0:00:44]}  Kxf3 {[%clk 0:00:08]} 0-1


[Site "https://www.chess.com"]

[Event "Titled Tuesday Blitz November 15 Early 2022"]
[White "Ambartsumova, Karina"]
[Black "Le, Tuan Minh"]
[WhiteFideId "4166299"]
[BlackFideId "12401153"]
[WhiteElo "2319"]
[BlackElo "2530"]
[Result "0-1"]
[Round "04"]
[TimeControl "180+1"]
[Date "2022.11.16"]
[WhiteClock "0:00:02"]
[BlackClock "0:01:39"]

1. d4 {[%clk 0:03:00]}  d5 {[%clk 0:02:59]} 2. c4 {[%clk 0:03:00]}  c6 {[%clk 0:02:59]} 3. Nf3 {[%clk 0:03:00]}  Nf6 {[%clk 0:02:58]} 4. g3 {[%clk 0:03:00]}  Bf5 {[%clk 0:02:56]} 5. Qb3 {[%clk 0:02:59]}  Qc8 {[%clk 0:02:50]} 6. Nc3 {[%clk 0:02:54]}  e6 {[%clk 0:02:50]} 7. Bg2 {[%clk 0:02:44]}  h6 {[%clk 0:02:50]} 8. O-O {[%clk 0:02:44]}  Be7 {[%clk 0:02:50]} 9. Bf4 {[%clk 0:02:38]}  Nbd7 {[%clk 0:02:50]} 10. Rac1 {[%clk 0:02:38]}  O-O {[%clk 0:02:47]} 11. Ne5 {[%clk 0:02:30]}  Nb6 {[%clk 0:02:43]} 12. c5 {[%clk 0:02:13]}  Nbd7 {[%clk 0:02:43]} 13. Qd1 {[%clk 0:02:05]}  Rd8 {[%clk 0:02:39]} 14. b4 {[%clk 0:02:02]}  Nxe5 {[%clk 0:02:27]} 15. Bxe5 {[%clk 0:01:57]}  Nd7 {[%clk 0:02:27]} 16. Bf4 {[%clk 0:01:56]}  Bf6 {[%clk 0:02:27]} 17. e4 {[%clk 0:00:50]}  dxe4 {[%clk 0:02:28]} 18. Bxe4 {[%clk 0:00:50]}  Nf8 {[%clk 0:02:23]} 19. Bd6 {[%clk 0:00:45]}  e5 {[%clk 0:01:47]} 20. Qd3 {[%clk 0:00:40]}  Bh3 {[%clk 0:01:45]} 21. Rfd1 {[%clk 0:00:34]}  exd4 {[%clk 0:01:45]} 22. Ne2 {[%clk 0:00:34]}  Ne6 {[%clk 0:01:46]} 23. Kh1 {[%clk 0:00:16]}  Ng5 {[%clk 0:01:40]} 24. Nxd4 {[%clk 0:00:14]}  Nxe4 {[%clk 0:01:40]} 25. Qxe4 {[%clk 0:00:14]}  Re8 {[%clk 0:01:41]} 26. Qd3 {[%clk 0:00:10]}  Qg4 {[%clk 0:01:40]} 27. f3 {[%clk 0:00:06]}  Qh5 {[%clk 0:01:38]} 28. g4 {[%clk 0:00:06]}  Qd5 {[%clk 0:01:38]} 29. Nf5 {[%clk 0:00:05]}  Re1+ {[%clk 0:01:38]} 30. Rxe1 {[%clk 0:00:04]}  Qxd3 {[%clk 0:01:38]} 31. Re3 {[%clk 0:00:02]}  Qd2 {[%clk 0:01:39]} 0-1


[Site "https://www.chess.com"]

[Event "Titled Tuesday Blitz November 15 Early 2022"]
[White "Ardila, Oscar Humberto"]
[Black "Rosenberg, Evan S"]
[WhiteFideId "4404742"]
[BlackFideId "2019299"]
[WhiteElo "1959"]
[BlackElo "2368"]
[Result "0-1"]
[Round "04"]
[TimeControl "180+1"]
[Date "2022.11.16"]
[WhiteClock "0:01:59"]
[BlackClock "0:02:14"]

1. d4 {[%clk 0:02:59]}  d5 {[%clk 0:03:00]} 2. c4 {[%clk 0:02:59]}  e6 {[%clk 0:03:00]} 3. Nc3 {[%clk 0:03:00]}  c5 {[%clk 0:03:01]} 4. Nf3 {[%clk 0:02:59]}  cxd4 {[%clk 0:03:00]} 5. Nxd4 {[%clk 0:02:59]}  e5 {[%clk 0:03:00]} 6. Nf3 {[%clk 0:02:56]}  d4 {[%clk 0:03:00]} 7. Ne4 {[%clk 0:02:55]}  f5 {[%clk 0:02:55]} 8. Ned2 {[%clk 0:02:44]}  e4 {[%clk 0:02:52]} 9. Ng1 {[%clk 0:02:39]}  Nc6 {[%clk 0:02:42]} 10. Nb3 {[%clk 0:02:22]}  Bd6 {[%clk 0:02:21]} 11. Bd2 {[%clk 0:02:15]}  e3 {[%clk 0:02:15]} 12. fxe3 {[%clk 0:02:12]}  Qh4+ {[%clk 0:02:15]} 13. g3 {[%clk 0:01:59]}  Bxg3+ {[%clk 0:02:14]} 14. hxg3 {[%clk 0:01:59]}  Qxg3# {[%clk 0:02:14]} 0-1


[Site "https://www.chess.com"]

[Event "Titled Tuesday Blitz November 15 Early 2022"]
[White "Barbashin, Igor"]
[Black "Saya, Ethan"]
[WhiteFideId "4155718"]
[BlackFideId "26095181"]
[WhiteElo "2138"]
[BlackElo "2162"]
[Result "1-0"]
[Round "04"]
[TimeControl "180+1"]
[Date "2022.11.16"]
[WhiteClock "0:00:24"]
[BlackClock "0:00:05"]

1. d4 {[%clk 0:02:57]}  g6 {[%clk 0:02:58]} 2. c4 {[%clk 0:02:56]}  Bg7 {[%clk 0:02:58]} 3. Nc3 {[%clk 0:02:57]}  d6 {[%clk 0:02:58]} 4. Nf3 {[%clk 0:02:56]}  a6 {[%clk 0:02:56]} 5. e4 {[%clk 0:02:55]}  Nd7 {[%clk 0:02:56]} 6. Be2 {[%clk 0:02:53]}  e6 {[%clk 0:02:55]} 7. O-O {[%clk 0:02:52]}  h6 {[%clk 0:02:55]} 8. Be3 {[%clk 0:02:52]}  Ne7 {[%clk 0:02:54]} 9. Qd2 {[%clk 0:02:51]}  b6 {[%clk 0:02:53]} 10. Rad1 {[%clk 0:02:48]}  Bb7 {[%clk 0:02:53]} 11. b4 {[%clk 0:02:43]}  g5 {[%clk 0:02:45]} 12. a3 {[%clk 0:02:37]}  Ng6 {[%clk 0:02:39]} 13. c5 {[%clk 0:02:30]}  Qf6 {[%clk 0:02:10]} 14. cxd6 {[%clk 0:02:24]}  cxd6 {[%clk 0:02:10]} 15. Rfe1 {[%clk 0:02:14]}  Nf4 {[%clk 0:02:08]} 16. e5 {[%clk 0:02:08]}  Nxe2+ {[%clk 0:02:03]} 17. Rxe2 {[%clk 0:02:03]}  Qf5 {[%clk 0:01:53]} 18. d5 {[%clk 0:01:49]}  Nxe5 {[%clk 0:01:47]} 19. Nd4 {[%clk 0:01:42]}  Qg4 {[%clk 0:01:35]} 20. h3 {[%clk 0:01:36]}  Qh5 {[%clk 0:01:34]} 21. dxe6 {[%clk 0:01:35]}  O-O {[%clk 0:01:25]} 22. e7 {[%clk 0:01:30]}  Rfe8 {[%clk 0:01:22]} 23. Nf5 {[%clk 0:01:30]}  g4 {[%clk 0:01:11]} 24. Ng3 {[%clk 0:01:21]}  Qg6 {[%clk 0:01:09]} 25. h4 {[%clk 0:01:19]}  Rac8 {[%clk 0:00:57]} 26. Nd5 {[%clk 0:01:16]}  Nc4 {[%clk 0:00:52]} 27. Qa2 {[%clk 0:00:56]}  b5 {[%clk 0:00:43]} 28. h5 {[%clk 0:00:52]}  Qe6 {[%clk 0:00:38]} 29. Bf4 {[%clk 0:00:44]}  Qxe7 {[%clk 0:00:33]} 30. Nxe7+ {[%clk 0:00:43]}  Kf8 {[%clk 0:00:12]} 31. Nd5 {[%clk 0:00:39]}  Red8 {[%clk 0:00:08]} 32. Ne3 {[%clk 0:00:35]}  d5 {[%clk 0:00:05]} 33. Nxc4 {[%clk 0:00:34]}  bxc4 {[%clk 0:00:05]} 34. Be5 {[%clk 0:00:32]}  d4 {[%clk 0:00:03]} 35. Bxg7+ {[%clk 0:00:31]}  Kxg7 {[%clk 0:00:04]} 36. Nf5+ {[%clk 0:00:31]}  Kf6 {[%clk 0:00:03]} 37. Nxd4 {[%clk 0:00:31]}  c3 {[%clk 0:00:03]} 38. Qc2 {[%clk 0:00:28]}  Kg7 {[%clk 0:00:02]} 39. Nf5+ {[%clk 0:00:27]}  Kf8 {[%clk 0:00:02]} 40. Rxd8+ {[%clk 0:00:26]}  Rxd8 {[%clk 0:00:03]} 41. Qxc3 {[%clk 0:00:26]}  Rd1+ {[%clk 0:00:04]} 42. Kh2 {[%clk 0:00:25]}  g3+ {[%clk 0:00:05]} 43. fxg3 {[%clk 0:00:25]}  Rh1+ {[%clk 0:00:04]} 44. Kxh1 {[%clk 0:00:24]}  Bxg2+ {[%clk 0:00:05]} 45. Kh2 {[%clk 0:00:24]} 1-0


[Site "https://www.chess.com"]

[Event "Titled Tuesday Blitz November 15 Early 2022"]
[White "Barria Zuniga, Daniel"]
[Black "Ibarra Jerez, Jose Carlos"]
[WhiteFideId "3400816"]
[BlackFideId "2226332"]
[WhiteElo "2414"]
[BlackElo "2638"]
[Result "0-1"]
[Round "04"]
[TimeControl "180+1"]
[Date "2022.11.16"]
[WhiteClock "0:00:06"]
[BlackClock "0:00:08"]

1. c4 {[%clk 0:02:57]}  e5 {[%clk 0:02:59]} 2. g3 {[%clk 0:02:57]}  Nf6 {[%clk 0:03:00]} 3. Bg2 {[%clk 0:02:57]}  c6 {[%clk 0:03:00]} 4. d4 {[%clk 0:02:54]}  exd4 {[%clk 0:03:00]} 5. Qxd4 {[%clk 0:02:55]}  Na6 {[%clk 0:03:00]} 6. Nf3 {[%clk 0:02:43]}  Bc5 {[%clk 0:03:00]} 7. Qd1 {[%clk 0:02:38]}  O-O {[%clk 0:03:00]} 8. O-O {[%clk 0:02:38]}  d5 {[%clk 0:03:01]} 9. cxd5 {[%clk 0:02:37]}  Nxd5 {[%clk 0:03:01]} 10. a3 {[%clk 0:02:36]}  Qf6 {[%clk 0:02:58]} 11. Qc2 {[%clk 0:02:34]}  Re8 {[%clk 0:02:56]} 12. Bg5 {[%clk 0:02:00]}  Qg6 {[%clk 0:02:52]} 13. Qxg6 {[%clk 0:01:59]}  hxg6 {[%clk 0:02:53]} 14. Re1 {[%clk 0:01:50]}  f6 {[%clk 0:02:46]} 15. Bd2 {[%clk 0:01:49]}  Be6 {[%clk 0:02:37]} 16. Nc3 {[%clk 0:01:28]}  Rad8 {[%clk 0:02:37]} 17. Rac1 {[%clk 0:01:22]}  Bf8 {[%clk 0:02:37]} 18. b4 {[%clk 0:01:19]}  Nb6 {[%clk 0:02:32]} 19. Be3 {[%clk 0:00:55]}  Nc4 {[%clk 0:02:29]} 20. b5 {[%clk 0:00:54]}  cxb5 {[%clk 0:02:22]} 21. Nxb5 {[%clk 0:00:53]}  Nxe3 {[%clk 0:02:13]} 22. fxe3 {[%clk 0:00:52]}  Bd7 {[%clk 0:02:06]} 23. Nfd4 {[%clk 0:00:34]}  Nc5 {[%clk 0:02:05]} 24. Nxa7 {[%clk 0:00:31]}  Rxe3 {[%clk 0:02:04]} 25. Nab5 {[%clk 0:00:30]}  Kh7 {[%clk 0:01:46]} 26. Rc3 {[%clk 0:00:27]}  Re5 {[%clk 0:01:30]} 27. Rb1 {[%clk 0:00:18]}  Ne4 {[%clk 0:01:28]} 28. Rcc1 {[%clk 0:00:13]}  Bc5 {[%clk 0:01:25]} 29. Bxe4 {[%clk 0:00:11]}  Bxb5 {[%clk 0:01:25]} 30. Rxc5 {[%clk 0:00:09]}  Rxc5 {[%clk 0:00:44]} 31. Nxb5 {[%clk 0:00:09]}  b6 {[%clk 0:00:45]} 32. Bf3 {[%clk 0:00:09]}  Rd2 {[%clk 0:00:44]} 33. Kf2 {[%clk 0:00:09]}  g5 {[%clk 0:00:44]} 34. Rb3 {[%clk 0:00:09]}  f5 {[%clk 0:00:42]} 35. h3 {[%clk 0:00:09]}  Rc4 {[%clk 0:00:31]} 36. g4 {[%clk 0:00:08]}  g6 {[%clk 0:00:27]} 37. Rb4 {[%clk 0:00:07]}  Rc5 {[%clk 0:00:16]} 38. a4 {[%clk 0:00:03]}  Ra2 {[%clk 0:00:16]} 39. Rd4 {[%clk 0:00:03]}  Kg7 {[%clk 0:00:14]} 40. Rd7+ {[%clk 0:00:03]}  Kf8 {[%clk 0:00:13]} 41. Rd6 {[%clk 0:00:03]}  Rxa4 {[%clk 0:00:12]} 42. Rxb6 {[%clk 0:00:03]}  Rb4 {[%clk 0:00:13]} 43. Rb8+ {[%clk 0:00:03]}  Kg7 {[%clk 0:00:12]} 44. Rb7+ {[%clk 0:00:03]}  Kh6 {[%clk 0:00:13]} 45. Nd6 {[%clk 0:00:03]}  Rxb7 {[%clk 0:00:11]} 46. Nxb7 {[%clk 0:00:04]}  Rc1 {[%clk 0:00:11]} 47. gxf5 {[%clk 0:00:04]}  gxf5 {[%clk 0:00:11]} 48. Nd6 {[%clk 0:00:05]}  Kg6 {[%clk 0:00:11]} 49. Nc8 {[%clk 0:00:05]}  Rxc8 {[%clk 0:00:10]} 50. Ke3 {[%clk 0:00:04]}  Rc3+ {[%clk 0:00:09]} 51. Kf2 {[%clk 0:00:03]}  f4 {[%clk 0:00:08]} 52. Kg2 {[%clk 0:00:03]}  Kf6 {[%clk 0:00:08]} 53. Kf2 {[%clk 0:00:04]}  Ke5 {[%clk 0:00:08]} 54. Bg4 {[%clk 0:00:04]}  Rg3 {[%clk 0:00:08]} 55. Bf3 {[%clk 0:00:05]}  Rxh3 {[%clk 0:00:07]} 56. Bg4 {[%clk 0:00:06]}  Rg3 {[%clk 0:00:08]} 0-1


[Site "https://www.chess.com"]

[Event "Titled Tuesday Blitz November 15 Early 2022"]
[White "Boros, Denes"]
[Black "Aldokhin, Ivan"]
[WhiteFideId "722340"]
[BlackFideId "24115720"]
[WhiteElo "2464"]
[BlackElo "2313"]
[Result "1-0"]
[Round "04"]
[TimeControl "180+1"]
[Date "2022.11.16"]
[WhiteClock "0:00:03"]
[BlackClock "0:00:02"]

1. d4 {[%clk 0:03:00]}  Nf6 {[%clk 0:02:58]} 2. Nc3 {[%clk 0:03:01]}  d5 {[%clk 0:02:56]} 3. Bg5 {[%clk 0:03:02]}  c6 {[%clk 0:02:54]} 4. Nf3 {[%clk 0:03:00]}  Ne4 {[%clk 0:02:44]} 5. h4 {[%clk 0:02:49]}  Qb6 {[%clk 0:02:30]} 6. Rb1 {[%clk 0:02:44]}  e5 {[%clk 0:02:09]} 7. Na4 {[%clk 0:02:01]}  Qa5+ {[%clk 0:01:50]} 8. c3 {[%clk 0:02:01]}  Nxg5 {[%clk 0:01:18]} 9. Nxg5 {[%clk 0:01:59]}  h6 {[%clk 0:01:11]} 10. b4 {[%clk 0:01:51]}  Qc7 {[%clk 0:01:06]} 11. Nh3 {[%clk 0:01:46]}  Bxh3 {[%clk 0:01:02]} 12. Rxh3 {[%clk 0:01:42]}  Nd7 {[%clk 0:00:57]} 13. dxe5 {[%clk 0:01:22]}  b5 {[%clk 0:00:51]} 14. Nb2 {[%clk 0:01:18]}  Nxe5 {[%clk 0:00:51]} 15. Qd4 {[%clk 0:01:16]}  Bd6 {[%clk 0:00:34]} 16. Rg3 {[%clk 0:00:59]}  O-O {[%clk 0:00:29]} 17. f4 {[%clk 0:00:57]}  Ng6 {[%clk 0:00:28]} 18. e3 {[%clk 0:00:55]}  Rfe8 {[%clk 0:00:26]} 19. Kd1 {[%clk 0:00:39]}  c5 {[%clk 0:00:21]} 20. Qd2 {[%clk 0:00:32]}  d4 {[%clk 0:00:18]} 21. bxc5 {[%clk 0:00:23]}  Bxf4 {[%clk 0:00:08]} 22. exf4 {[%clk 0:00:23]}  Nxf4 {[%clk 0:00:04]} 23. cxd4 {[%clk 0:00:20]}  Rad8 {[%clk 0:00:05]} 24. Rf3 {[%clk 0:00:16]}  Ne6 {[%clk 0:00:05]} 25. Rd3 {[%clk 0:00:13]}  Nf4 {[%clk 0:00:05]} 26. Rb3 {[%clk 0:00:11]}  Ne6 {[%clk 0:00:05]} 27. Rd3 {[%clk 0:00:08]}  Nf4 {[%clk 0:00:06]} 28. Kc2 {[%clk 0:00:09]}  Nxd3 {[%clk 0:00:05]} 29. Qxd3 {[%clk 0:00:10]}  Qf4 {[%clk 0:00:03]} 30. Nd1 {[%clk 0:00:10]}  Rxd4 {[%clk 0:00:02]} 31. Qc3 {[%clk 0:00:10]}  Red8 {[%clk 0:00:02]} 32. Nb2 {[%clk 0:00:05]}  Rd2+ {[%clk 0:00:02]} 33. Kb3 {[%clk 0:00:06]}  b4 {[%clk 0:00:01]} 34. Qc4 {[%clk 0:00:06]}  Qf2 {[%clk 0:00:01]} 35. Qb5 {[%clk 0:00:04]}  Qe3+ {[%clk 0:00:01]} 36. Kxb4 {[%clk 0:00:04]}  Qd4+ {[%clk 0:00:02]} 37. Nc4 {[%clk 0:00:04]}  a6 {[%clk 0:00:02]} 38. Qb6 {[%clk 0:00:04]}  Rc2 {[%clk 0:00:02]} 39. Rb3 {[%clk 0:00:03]}  Rc1 {[%clk 0:00:02]} 40. Be2 {[%clk 0:00:04]}  Rc8 {[%clk 0:00:02]} 41. c6 {[%clk 0:00:03]}  Qf2 {[%clk 0:00:03]} 42. Qxf2 {[%clk 0:00:03]}  Rb8+ {[%clk 0:00:03]} 43. Ka4 {[%clk 0:00:03]}  Rc8 {[%clk 0:00:02]} 44. Rb4 {[%clk 0:00:03]} 1-0


[Site "https://www.chess.com"]